bitfinex-derivatives/quotes_ETHF0:USTF0_20210703
["timestamp","ask_amount","ask_price","bid_price","bid_amount"]
[1625279856196,15.2573,2149.5,2148.4,43.4035]
[1625279856396,2.20527,2149.0,2148.8,2.20527]
[1625279858498,4.41054,2149.0,2148.8,2.20527]
[1625279869263,4.41054,2149.0,2148.3,2.20527]
[1625279870517,2.20527,2148.6,2148.3,4.41054]
[1625279881661,2.20527,2148.6,2147.8,15.5297]
[1625279881862,2.20527,2148.6,2146.7,2.34019956]
[1625279881962,1.0,2148.5,2146.7,1.34019956]
[1625279882165,1.0,2148.5,2146.4,15.4521]
[1625279882616,2.20527,2147.7,2147.6,2.20527]
[1625279882714,5.58287,2147.7,2147.6,2.20527]
[1625279883065,50.52257,2147.7,2147.6,2.20527]
[1625279883166,5.58287,2147.7,2147.6,2.20527]
[1625279884624,7.78814,2147.7,2147.6,2.20527]
[1625279890437,4.41054,2147.7,2147.6,46.80247]
[1625279890989,1.0,2148.2,2147.6,46.80247]
[1625279891138,1.0,2148.5,2147.6,46.80247]
[1625279891239,15.3977,2148.6,2147.6,46.80247]
[1625279891840,55.4121,2148.5,2147.6,4.95717]
[1625279892042,55.4121,2148.5,2147.6,2.20527]
[1625279892402,41.7386,2148.1,2147.6,2.20527]
[1625279892502,3.0242,2148.1,2147.6,2.20527]
[1625279892602,2.20527,2147.8,2147.6,2.20527]
[1625279896667,2.20527,2147.8,2147.7,57.8474]
[1625279896771,2.20527,2147.8,2147.7,60.9867]
[1625279897468,2.20527,2147.8,2147.7,3.1393]
[1625279898167,2.20527,2147.8,2147.7,4.0667]
[1625279898867,2.20527,2147.8,2147.7,3.1393]
[1625279899823,2.20527,2147.8,2147.6,54.07737]
[1625279900626,1.0,2148.3,2147.6,54.07737]
[1625279900725,2.20527,2148.3,2148.0,2.20527]
[1625279902181,2.20527,2148.5,2148.0,4.61737]
[1625279902486,2.20527,2148.5,2148.4,53.2296]
[1625279902583,2.20527,2148.5,2148.0,4.61737]
[1625279902735,2.20527,2148.5,2148.3,2.20527]
[1625279903387,3.13737,2148.5,2148.3,2.20527]
[1625279903635,2.20527,2148.5,2148.3,2.20527]
[1625279904740,2.20527,2148.4,2148.3,2.20527]
[1625279908560,2.20527,2148.4,2148.3,58.73877]
[1625279908664,2.20527,2148.4,2148.3,2.20527]
[1625279916724,2.20527,2148.1,2148.0,2.20527]
[1625279916825,5.37827,2148.1,2148.0,2.20527]
[1625279917225,60.51927,2148.1,2148.0,2.20527]
[1625279918081,60.51927,2148.1,2147.6,2.20527]
[1625279918783,2.20527,2147.7,2147.6,2.20527]
[1625279918981,52.16237,2147.7,2147.6,2.20527]
[1625279919631,2.20527,2147.7,2147.6,2.20527]
[1625279919980,2.20527,2147.7,2147.6,3.14747]
[1625279920587,2.20527,2148.1,2147.6,3.14747]
[1625279920686,2.20527,2148.1,2147.6,5.49707]
[1625279920789,2.20527,2148.1,2148.0,2.20527]
[1625279921084,2.20527,2148.1,2148.0,43.35707]
[1625279922085,2.20527,2148.1,2148.0,2.20527]
[1625279930119,5.54457,2148.1,2148.0,2.20527]
[1625279930318,49.61857,2148.1,2148.0,2.20527]
[1625279930871,5.54457,2148.1,2148.0,2.20527]
[1625279931722,5.54457,2148.1,2147.6,2.20527]
[1625279932824,2.20527,2147.7,2147.6,2.20527]
[1625279934824,2.20527,2147.7,2147.6,57.23497]
[1625279946221,2.20527,2147.7,2147.6,55.0297]
[1625279947131,2.20527,2148.1,2147.6,55.0297]
[1625279947733,2.20527,2148.1,2148.0,42.9256]
[1625279947831,2.20527,2148.1,2148.0,45.4715]
[1625279948945,4.41054,2148.1,2148.0,47.67677]
[1625279950240,2.20527,2148.1,2148.0,47.67677]
[1625279950494,2.20527,2148.1,2148.0,49.02234549]
[1625279951041,2.20527,2148.4,2148.0,51.22761549]
[1625279952946,2.20527,2148.4,2148.3,2.20527]
[1625279953046,2.20527,2148.4,2148.3,47.07547]
[1625279961332,2.20527,2148.4,2148.3,2.20527]
[1625279964395,2.20527,2148.4,2148.3,51.32057]
[1625279964846,2.20527,2148.4,2148.3,53.76967]
[1625279972617,2.20527,2148.4,2148.3,4.65437]
[1625279972968,2.20527,2148.4,2148.3,2.20527]
[1625279973678,52.84967,2148.4,2148.0,2.20527]
[1625279973779,2.20527,2148.4,2148.0,2.20527]
[1625279975084,2.20527,2148.1,2148.0,2.20527]
[1625279975185,5.30167,2148.1,2148.0,2.20527]
[1625279977444,5.30167,2148.1,2148.0,57.82657]
[1625279978697,5.30167,2148.1,2148.0,2.20527]
[1625279979200,5.30167,2148.1,2148.0,45.03297]
[1625279979298,2.20527,2148.4,2148.0,45.03297]
[1625279979399,1.37361186,2148.5,2148.0,48.39607]
[1625279979701,1.3736297,2148.9,2148.0,48.39607]
[1625279980053,1.3736297,2148.9,2148.8,44.0167]
[1625279980150,1.3736297,2148.9,2148.8,46.8058]
[1625279980249,1.3736297,2148.9,2148.8,2.7891]
[1625279980649,1.3736327,2149.0,2148.8,2.7891]
[1625279981150,4.41054,2148.9,2148.8,4.99437]
[1625279982767,1.37345573,2149.1,2148.8,4.99437]
[1625279983216,3.57872573,2149.1,2148.8,4.99437]
[1625279985181,2.20527,2149.0,2148.8,4.99437]
[1625279993849,5.15817,2149.0,2148.8,2.20527]
[1625279994150,40.1803,2148.9,2148.8,2.20527]
[1625279994398,41.55348336,2148.9,2148.8,2.20527]
[1625279996900,1.37318336,2148.9,2148.8,2.20527]
[1625279997201,3.57845433,2149.0,2148.8,2.20527]
[1625279997703,1.37321909,2148.9,2148.8,2.20527]
[1625279998056,41.24251909,2148.9,2148.8,2.20527]
[1625279998354,1.37321909,2148.9,2148.8,2.20527]
[1625279998604,3.57848289,2149.0,2148.8,2.20527]
[1625279998855,54.0859,2148.9,2148.8,2.20527]
[1625279998954,3.57848289,2149.0,2148.8,2.20527]
[1625279999455,2.20527,2149.0,2148.8,2.20527]
[1625280000909,3.57840893,2149.0,2148.8,2.20527]
[1625280002607,2.20527,2149.0,2148.8,2.20527]
[1625280002958,3.57833247,2149.0,2148.8,2.20527]
[1625280003309,2.20527,2149.0,2148.8,2.20527]
[1625280005381,3.57828339,2149.0,2148.8,2.20527]
[1625280005631,2.20527,2149.0,2148.8,2.20527]
[1625280007636,2.20527,2149.0,2148.8,49.14747]
[1625280008188,2.20527,2149.0,2148.8,2.20527]
[1625280014160,2.20527,2149.0,2148.8,4.55337]
[1625280014713,2.20527,2149.0,2148.9,56.6856]
[1625280015014,2.20527,2149.0,2148.8,4.55337]
[1625280016185,2.20527,2149.0,2148.9,41.868]
[1625280017891,2.20527,2149.0,2148.8,4.55337]
[1625280018493,2.20527,2149.0,2148.9,47.1034]
[1625280018591,2.20527,2149.0,2148.8,4.55337]
[1625280019645,2.20527,2149.0,2148.9,56.55]
[1625280020400,2.20527,2149.0,2148.8,2.20527]
[1625280021853,2.20527,2149.0,2148.9,42.9825]
[1625280021952,2.20527,2149.0,2148.9,45.6476]
[1625280022908,2.20527,2149.0,2148.9,2.6651]
[1625280023907,2.20527,2149.0,2148.9,46.817]
[1625280024760,2.20527,2149.0,2148.9,2.6651]
[1625280025865,2.20527,2149.0,2148.9,56.3232]
[1625280026418,1.37361652,2149.4,2148.9,56.3232]
[1625280026714,1.90134233,2149.5,2148.9,56.3232]
[1625280026916,2.74675116,2149.6,2149.0,16.874611]
[1625280026917,1.37352472,2149.6,2149.0,16.874611]
[1625280027318,1.37352472,2149.6,2149.5,47.63044]
[1625280027419,2.20527,2149.8,2149.5,51.25164]
[1625280027869,2.20527,2149.8,2149.5,8.03174]
[1625280031985,2.20527,2149.8,2149.5,4.41054]
[1625280038324,2.20527,2149.8,2149.7,57.8164]
[1625280038776,2.20527,2149.8,2149.5,4.41054]
[1625280039479,2.20527,2149.7,2149.5,4.41054]
[1625280039947,58.4653,2149.6,2149.5,4.41054]
[1625280040782,2.20527,2149.7,2149.5,4.41054]
[1625280041191,2.20527,2149.7,2148.6,0.9415]
[1625280041291,3.20527,2149.7,2148.6,56.3638]
[1625280041391,3.20527,2149.7,2148.3,2.68016466]
[1625280041494,2.20527,2149.2,2149.1,2.20527]
[1625280041693,4.52367,2149.2,2149.1,2.20527]
[1625280043452,6.72894,2149.2,2149.1,2.20527]
[1625280043804,2.3184,2149.2,2149.1,2.20527]
[1625280043904,1.0,2149.7,2149.1,2.20527]
[1625280044003,2.6246,2149.8,2149.1,2.20527]
[1625280045111,3.74399341,2150.0,2149.1,2.20527]
[1625280045204,2.74399341,2150.0,2149.1,2.20527]
[1625280045557,2.20527,2149.4,2149.1,2.20527]
[1625280047964,2.20527,2149.4,2149.2,45.2314]
[1625280048913,2.20527,2149.4,2149.1,2.20527]
[1625280049513,2.20527,2149.2,2149.1,2.20527]
[1625280055075,2.20527,2149.2,2149.1,44.39937]
[1625280055728,2.20527,2149.2,2149.1,2.20527]
[1625280056280,2.20527,2149.2,2149.1,42.21947]
[1625280058385,2.20527,2149.2,2149.1,2.20527]
[1625280058790,5.13567,2149.2,2149.1,2.20527]
[1625280062007,5.13567,2149.2,2148.9,2.20527]
[1625280062112,5.13567,2149.2,2148.0,3.48350221]
[1625280062210,6.13567,2149.2,2148.0,2.68021295]
[1625280062558,48.3768,2148.5,2148.0,2.68021295]
[1625280062709,51.6712,2148.5,2148.0,2.68021295]
[1625280062809,51.6712,2148.5,2147.9,2.681707]
[1625280063112,51.6712,2148.5,2147.8,2.68273264]
[1625280063309,46.2241,2147.9,2147.8,2.68273264]
[1625280063411,49.9431,2147.9,2147.3,2.68607429]
[1625280063614,54.35364,2147.9,2147.8,2.20527]
[1625280063711,8.12954,2147.9,2147.6,2.20527]
[1625280064265,54.34934,2147.9,2147.6,2.20527]
[1625280065577,8.12954,2147.9,2147.3,2.20527]
[1625280067529,4.41054,2147.4,2147.3,2.20527]
[1625280069733,7.51254,2147.4,2147.3,2.20527]
[1625280069937,7.51254,2147.4,2147.1,2.20527]
[1625280070036,7.51254,2147.4,2146.9,2.68689631]
[1625280070134,58.0223,2147.2,2146.9,2.68689631]
[1625280070648,58.0223,2147.2,2146.7,4.759]
[1625280070840,58.0223,2147.2,2146.4,2.68885743]
[1625280071240,58.0223,2147.2,2146.1,14.1029]
[1625280071241,58.0223,2147.2,2146.3,2.68941403]
[1625280071338,54.0736,2146.7,2146.3,2.68941403]
[1625280071439,3.3193,2146.7,2146.3,2.68941403]
[1625280071539,2.20527,2146.6,2146.5,2.20527]
[1625280071639,2.20527,2146.6,2146.3,2.68941403]
[1625280071892,2.20527,2146.6,2146.2,2.6905655]
[1625280072242,2.20527,2146.6,2146.0,2.68868133]
[1625280072339,50.9405,2146.5,2146.0,2.68868133]
[1625280072446,2.20527,2146.6,2146.0,2.68868133]
[1625280072546,2.20527,2146.6,2145.9,2.68952343]
[1625280073598,2.20527,2146.1,2146.0,2.20527]
[1625280075610,2.20527,2146.6,2146.5,2.20527]
[1625280076160,2.20527,2146.6,2146.5,48.59697]
[1625280076260,2.20527,2146.6,2146.5,2.20527]
[1625280087335,2.20527,2146.6,2146.0,2.20527]
[1625280087734,53.68837,2146.1,2146.0,2.20527]
[1625280087836,56.78777,2146.1,2146.0,2.20527]
[1625280089739,58.99304,2146.1,2145.7,2.20527]
[1625280090139,7.50994,2146.1,2145.7,2.20527]
[1625280090649,57.5963,2146.0,2145.7,2.20527]
[1625280091251,57.5963,2146.0,2144.7,4.759]
[1625280091354,1.0,2145.9,2144.7,4.759]
[1625280091756,2.20527,2145.0,2144.9,2.20527]
[1625280093964,2.20527,2145.0,2144.9,55.75417]
[1625280094767,2.20527,2145.0,2144.9,2.20527]
[1625280096320,5.91567,2145.0,2144.9,2.20527]
[1625280099633,2.20527,2145.0,2144.9,2.20527]
[1625280101989,2.20527,2145.0,2144.6,2.20527]
[1625280102087,2.20527,2145.0,2144.2,3.0]
[1625280102686,2.20527,2145.0,2144.3,16.954179]
[1625280103688,41.1529,2144.9,2144.3,16.954179]
[1625280103788,2.20527,2144.5,2144.4,2.20527]
[1625280105445,2.20527,2144.5,2144.4,42.31657]
[1625280105543,1.0,2145.3,2144.4,42.31657]
[1625280105643,64.3479,2146.4,2144.4,45.17337]
[1625280105743,64.3479,2146.4,2144.4,61.980171]
[1625280105843,2.20527,2145.2,2145.1,2.20527]
[1625280105945,2.20527,2145.2,2145.1,5.77977]
[1625280115269,2.20527,2145.2,2145.1,2.20527]
[1625280116478,2.20527,2145.2,2144.9,2.20527]
[1625280117329,58.417,2145.0,2144.1,0.9465]
[1625280117427,61.7257,2145.0,2144.1,0.9465]
[1625280117778,61.7257,2145.0,2144.2,3.0]
[1625280117928,2.20527,2144.7,2144.6,2.20527]
[1625280120089,4.41054,2144.7,2144.6,2.20527]
[1625280121398,55.73804,2144.7,2144.6,2.20527]
[1625280124004,4.41054,2144.7,2144.6,2.20527]
[1625280125706,45.14734,2144.7,2144.6,2.20527]
[1625280126358,4.41054,2144.7,2144.6,2.20527]
[1625280127824,59.84624,2144.7,2144.6,2.20527]
[1625280132486,4.41054,2144.7,2144.6,2.20527]
[1625280133688,54.01574,2144.7,2144.6,2.20527]
[1625280135693,4.41054,2144.7,2144.6,2.20527]
[1625280138502,4.41054,2144.7,2144.6,5.11707]
[1625280139303,14.7795,2146.3,2144.6,5.11707]
[1625280139883,14.7795,2146.3,2144.7,16.890162]
[1625280140189,14.7795,2146.3,2145.2,2.20527]
[1625280140190,2.20527,2145.3,2145.2,2.20527]
[1625280140283,2.20527,2145.3,2145.2,5.21387]
[1625280140536,2.20527,2145.3,2145.2,22.21887]
[1625280141539,0.04057,2145.3,2145.2,22.21887]
[1625280141643,1.0,2146.2,2145.2,22.21887]
[1625280142246,3.20527,2146.2,2146.0,2.20527]
[1625280142347,2.20527,2146.2,2146.0,5.04867]
[1625280144210,2.20527,2146.1,2146.0,5.04867]
[1625280144301,53.11247,2146.1,2146.0,5.04867]
[1625280144551,2.20527,2146.1,2146.0,5.04867]
[1625280145406,1.0,2146.8,2146.0,5.04867]
[1625280145504,79.5276,2146.9,2146.0,5.04867]
[1625280146205,53.0584,2146.5,2146.0,5.04867]
[1625280146308,2.20527,2146.3,2146.0,5.04867]
[1625280146978,45.7928,2146.1,2146.0,5.04867]
[1625280147328,45.7928,2146.1,2146.0,2.20527]
[1625280147833,45.7928,2146.1,2144.8,5.759]
[1625280147931,1.0,2146.0,2144.8,4.759]
[1625280148281,2.20527,2145.5,2145.4,2.20527]
[1625280148435,5.52117,2145.5,2145.4,2.20527]
[1625280148982,61.36557,2145.5,2145.4,2.20527]
[1625280150283,63.57084,2145.5,2145.4,2.20527]
[1625280157754,63.57084,2145.5,2144.3,14.1803]
[1625280157905,64.57084,2145.5,2144.3,14.1803]
[1625280158005,8.72644,2145.5,2144.3,14.1803]
[1625280158258,8.72644,2145.5,2144.8,2.20527]
[1625280158357,2.20527,2144.9,2144.8,2.20527]
[1625280158457,5.84207,2144.9,2144.8,2.20527]
[1625280162271,3.6368,2144.9,2144.8,2.20527]
[1625280162880,1.0,2145.4,2144.8,2.20527]
[1625280162980,5.52117,2145.5,2144.8,2.20527]
[1625280164337,2.20527,2145.1,2144.8,2.20527]
[1625280166393,4.41054,2145.1,2144.8,4.41054]
[1625280167195,55.5989,2145.0,2144.8,4.41054]
[1625280167295,57.8914,2145.0,2144.8,4.41054]
[1625280167648,2.2925,2145.0,2144.8,4.41054]
[1625280168547,4.41054,2145.1,2144.8,4.41054]
[1625280172261,4.41054,2145.1,2144.8,57.20824]
[1625280172711,4.41054,2145.1,2144.8,4.41054]
[1625280175927,4.41054,2145.1,2144.8,2.20527]
[1625280176988,1.0,2146.0,2144.8,2.20527]
[1625280177384,1.0,2146.0,2144.9,16.977827]
[1625280177587,1.0,2146.0,2144.9,19.67183996]
[1625280178037,1.0,2146.0,2145.0,2.69534807]
[1625280178385,2.20527,2145.7,2145.6,2.20527]
[1625280180488,4.41054,2145.7,2145.6,2.20527]
[1625280187804,2.75118611,2146.2,2145.6,2.20527]
[1625280188004,3.75100881,2146.4,2145.6,2.20527]
[1625280188103,2.75100881,2146.4,2145.6,2.20527]
[1625280188505,2.20527,2145.7,2145.6,2.20527]
[1625280189657,2.20527,2145.9,2145.6,2.20527]
[1625280190107,2.75097015,2146.5,2145.6,2.20527]
[1625280190259,2.75097015,2146.5,2145.8,52.0739]
[1625280190461,2.20527,2146.4,2146.3,2.20527]
[1625280190559,2.20527,2146.4,2146.3,4.52457]
[1625280192515,4.41054,2146.4,2146.3,4.52457]
[1625280194416,2.20527,2146.4,2146.3,4.52457]
[1625280194566,3.20527,2146.9,2146.3,4.52457]
[1625280194668,2.20527,2146.9,2146.3,4.52457]
[1625280196534,2.20527,2146.9,2146.8,2.20527]
[1625280199890,52.01737,2146.9,2146.8,2.20527]
[1625280201692,52.01737,2146.9,2146.3,2.20527]
[1625280201794,54.46907,2146.9,2146.3,2.20527]
[1625280202295,54.46907,2146.9,2145.8,4.759]
[1625280202395,49.4981,2145.9,2145.8,4.759]
[1625280202493,52.9678,2145.9,2145.8,4.759]
[1625280202645,57.37834,2145.9,2145.7,2.20527]
[1625280203999,7.88024,2145.9,2145.7,2.20527]
[1625280206457,7.88024,2145.9,2145.8,53.1258]
[1625280207508,7.88024,2145.9,2145.7,2.20527]
[1625280209717,4.41054,2145.9,2145.7,2.20527]
[1625280212975,4.41054,2145.9,2145.8,16.827545]
[1625280213074,4.41054,2145.9,2145.8,73.852545]
[1625280213228,4.41054,2145.9,2145.8,20.075845]
[1625280215631,4.41054,2145.9,2145.8,3.2483]
[1625280215735,4.41054,2145.9,2145.7,2.20527]
[1625280217339,4.41054,2145.9,2145.8,49.0262]
[1625280217441,4.41054,2145.9,2145.8,51.3922]
[1625280217892,4.41054,2145.9,2145.8,2.366]
[1625280218546,4.41054,2145.9,2145.7,2.20527]
[1625280222511,54.9139,2145.8,2145.7,2.20527]
[1625280223012,54.9139,2145.8,2145.5,2.20527]
[1625280223110,54.9139,2145.8,2144.8,1.88650938]
[1625280223209,55.9139,2145.8,2144.8,1.88650938]
[1625280223358,55.9139,2145.8,2144.7,7.4540134]
[1625280223359,55.9139,2145.8,2144.7,6.64613307]
[1625280223611,55.9139,2145.8,2144.7,4.759]
[1625280223710,48.4403,2144.9,2144.6,1.8877199]
[1625280223811,51.9802,2144.9,2144.6,1.8877199]
[1625280223910,3.5399,2144.9,2144.6,1.8877199]
[1625280224662,4.41054,2144.7,2144.6,4.0929899]
[1625280224766,4.41054,2144.7,2144.6,2.20527]
[1625280225115,4.41054,2144.7,2144.6,4.09340099]
[1625280227219,4.41054,2144.7,2144.6,2.20527]
[1625280227520,4.41054,2144.7,2144.6,4.0936993]
[1625280228724,2.20527,2144.7,2144.6,4.0936993]
[1625280229124,2.20527,2144.7,2144.6,4.90225682]
[1625280229225,2.20527,2144.7,2144.6,21.74919982]
[1625280230482,2.20527,2144.7,2144.6,19.052213]
[1625280230833,1.0,2145.7,2144.6,19.052213]
[1625280230931,1.92349091,2146.3,2144.6,19.052213]
[1625280231032,1.0,2146.0,2144.6,19.052213]
[1625280231438,1.0,2146.0,2145.0,1.88629916]
[1625280231633,1.0,2146.0,2145.0,2.81579916]
[1625280231834,1.0,2146.0,2145.1,16.905845]
[1625280231934,15.2003,2146.4,2145.1,16.905845]
[1625280232135,1.0,2146.3,2145.1,16.905845]
[1625280232584,1.0,2146.3,2145.1,64.991845]
[1625280232688,1.0,2146.3,2145.1,16.905845]
[1625280232834,2.20527,2145.4,2145.3,2.20527]
[1625280234800,4.41054,2145.4,2145.3,2.20527]
[1625280236340,2.20527,2145.4,2145.3,2.20527]
[1625280243470,2.20527,2145.4,2145.3,5.27937]
[1625280244023,2.20527,2145.4,2145.3,7.16981881]
[1625280244275,2.20527,2145.4,2145.3,7.97904992]
[1625280244374,2.20527,2145.7,2145.3,7.97904992]
[1625280244473,2.20527,2145.7,2145.3,24.78126192]
[1625280244775,2.20527,2145.7,2145.4,1.88957719]
[1625280245024,2.20527,2145.7,2145.6,55.70207]
[1625280245324,2.20527,2145.7,2145.6,72.518474]
[1625280246329,2.20527,2145.7,2145.6,19.021674]
[1625280250333,2.20527,2145.7,2145.6,67.290874]
[1625280251385,2.20527,2145.7,2145.6,19.021674]
[1625280252436,2.20527,2145.7,2145.6,62.775674]
[1625280252544,2.20527,2145.7,2145.6,19.021674]
[1625280256061,1.0,2146.3,2145.6,19.021674]
[1625280256212,15.2003,2146.4,2145.6,19.021674]
[1625280256563,1.0,2146.8,2145.6,19.021674]
[1625280257012,2.20527,2146.1,2146.0,2.20527]
[1625280259014,4.41054,2146.1,2146.0,2.20527]
[1625280259926,4.41054,2146.1,2145.6,2.20527]
[1625280260486,4.41054,2146.1,2145.7,17.056107]
[1625280261036,1.0,2146.4,2145.7,17.056107]
[1625280261138,39.2188,2146.5,2145.7,17.056107]
[1625280261586,2.20527,2145.9,2145.8,2.20527]
[1625280263294,1.0,2146.4,2145.8,2.20527]
[1625280263396,1.92396109,2146.8,2145.8,5.14827]
[1625280263498,2.92396109,2146.8,2145.8,5.14827]
[1625280263598,2.20527,2146.5,2146.1,2.20527]
[1625280263948,2.20527,2146.5,2146.2,16.977299]
[1625280264353,2.20527,2146.5,2146.4,55.4624]
[1625280264499,2.20527,2146.5,2146.4,58.0611]
[1625280264811,2.20527,2146.5,2146.4,2.5987]
[1625280265613,2.20527,2146.5,2146.4,4.80397]
[1625280268223,42.30227,2146.5,2146.4,4.80397]
[1625280268425,2.20527,2146.5,2146.4,4.80397]
[1625280268526,2.20527,2146.7,2146.4,4.80397]
[1625280273740,2.20527,2146.7,2146.6,48.34827]
[1625280274045,2.20527,2146.7,2146.6,2.20527]
[1625280278972,2.20527,2146.7,2146.1,1.34418387]
[1625280279071,55.4188,2146.5,2146.1,1.34418387]
[1625280279322,55.4188,2146.5,2146.0,1.3446222]
[1625280279573,55.4188,2146.5,2145.9,1.34517134]
[1625280279673,2.20527,2146.2,2146.1,2.20527]
[1625280279777,5.88927,2146.2,2146.1,2.20527]
[1625280280525,5.88927,2146.2,2145.6,1.3462243]
[1625280280627,50.0974,2145.7,2145.4,1.34773014]
[1625280280726,52.8077,2145.7,2145.4,1.34773014]
[1625280281130,52.8077,2145.7,2145.2,6.10767326]
[1625280281540,2.7103,2145.7,2145.2,6.10767326]
[1625280281743,4.41054,2145.3,2145.2,6.96427]
[1625280282142,4.41054,2145.3,2145.2,8.31321018]
[1625280283149,4.41054,2145.3,2145.2,61.14291018]
[1625280283655,4.41054,2145.3,2145.2,61.68129371]
[1625280284053,4.41054,2145.3,2145.2,8.85159371]
[1625280284156,4.41054,2145.3,2145.2,4.09259371]
[1625280285005,4.41054,2145.3,2145.2,47.57019371]
[1625280285257,4.41054,2145.3,2145.2,4.09259371]
[1625280286461,4.41054,2145.3,2145.2,56.85319371]
[1625280286558,4.41054,2145.3,2145.2,4.09259371]
[1625280287512,79.2698,2146.1,2145.2,4.09259371]
[1625280287611,78.2698,2146.1,2145.2,4.09259371]
[1625280287810,2.20527,2145.7,2145.6,2.20527]
[1625280287910,5.45297,2145.7,2145.6,2.20527]
[1625280294256,3.2477,2145.7,2145.6,2.20527]
[1625280294406,1.0,2146.2,2145.6,2.20527]
[1625280294506,14.3044,2146.4,2145.6,2.20527]
[1625280294606,14.3044,2146.4,2145.6,3.5557209]
[1625280295266,56.4188,2146.5,2145.6,3.5557209]
[1625280295407,72.90216723,2146.8,2145.6,3.5557209]
[1625280295556,71.5285,2146.8,2145.6,3.5557209]
[1625280295657,1.0,2146.7,2145.6,3.5557209]
[1625280295759,2.20527,2146.0,2145.9,2.20527]
[1625280296660,2.20527,2146.2,2145.9,2.20527]
[1625280296758,2.20527,2146.2,2145.9,4.72327]
[1625280297813,2.20527,2146.2,2146.0,2.20527]
[1625280301140,2.20527,2146.2,2146.1,17.043614]
[1625280301438,2.20527,2146.4,2146.1,17.043614]
[1625280302041,2.20527,2146.4,2146.1,18.39123591]
[1625280302144,2.20527,2146.4,2146.3,2.20527]
[1625280303145,2.20527,2146.4,2146.3,48.14767]
[1625280303249,2.20527,2146.4,2146.3,51.89187]
[1625280303863,2.20527,2146.4,2146.3,53.77634524]
[1625280304271,0.80827,2146.4,2146.3,53.77634524]
[1625280305128,0.80827,2146.4,2146.3,53.23740093]
[1625280306138,2.20527,2146.7,2146.3,53.23740093]
[1625280307535,2.20527,2146.7,2146.3,7.29500093]
[1625280307636,2.20527,2146.7,2146.3,3.55080093]
[1625280308187,2.20527,2146.7,2146.6,2.20527]
[1625280311347,1.0,2147.2,2146.6,2.20527]
[1625280311444,1.0,2147.5,2146.6,2.20527]
[1625280311596,1.37160645,2147.9,2146.6,2.20527]
[1625280312049,1.37161335,2147.8,2146.6,2.20527]
[1625280312201,2.20527,2147.1,2147.0,2.20527]
[1625280313150,51.11177,2147.1,2147.0,2.20527]
[1625280314247,53.31704,2147.1,2147.0,2.20527]
[1625280315501,4.41054,2147.1,2147.0,2.20527]
[1625280316652,4.41054,2147.1,2145.9,16.37690793]
[1625280316753,1.0,2147.0,2145.9,16.37690793]
[1625280317613,1.0,2147.0,2146.1,43.0729]
[1625280317714,4.41054,2147.1,2145.9,16.37690793]
[1625280317813,5.41054,2147.1,2145.9,16.37690793]
[1625280317914,5.41054,2147.1,2146.0,1.34376679]
[1625280318213,2.20527,2146.6,2146.5,2.20527]
[1625280320266,4.41054,2146.6,2146.5,2.20527]
[1625280321924,4.41054,2146.6,2146.5,47.33477]
[1625280322228,4.41054,2146.6,2146.5,2.20527]
[1625280323181,7.73484,2146.6,2146.3,2.20527]
[1625280323692,7.73484,2146.6,2146.3,7e-05]
[1625280323693,53.7621,2146.4,2146.3,7e-05]
[1625280323791,53.7621,2146.4,2145.6,1.34629637]
[1625280324345,4.41054,2145.7,2145.6,1.34629637]
[1625280324444,7.23844,2145.7,2145.5,1.34726116]
[1625280324793,7.23844,2145.7,2145.3,3.55403448]
[1625280325144,7.23844,2145.7,2145.3,2.20527]
[1625280325495,7.23844,2145.7,2145.0,3.55455122]
[1625280326345,4.41054,2145.1,2145.0,3.55455122]
[1625280326448,8.19544,2145.1,2145.0,3.55455122]
[1625280327703,8.19544,2145.1,2145.0,1.34928122]
[1625280328353,8.19544,2145.1,2144.9,1.34988267]
[1625280328818,8.19544,2145.1,2144.8,1.34985711]
[1625280329856,8.19544,2145.1,2144.9,1.34940845]
[1625280330807,8.19544,2145.1,2144.8,1.34888967]
[1625280334223,47.51614,2145.1,2144.8,1.34888967]
[1625280334472,8.19544,2145.1,2144.8,1.34888967]
[1625280334572,8.19544,2145.1,2144.7,1.34998925]
[1625280336385,2.20527,2144.8,2144.7,1.34998925]
[1625280343006,2.20527,2144.8,2144.6,3.55810094]
[1625280344457,2.20527,2144.7,2144.6,3.55810094]
[1625280346363,2.20527,2144.7,2144.6,2.20527]
[1625280347370,59.66067,2144.7,2144.6,2.20527]
[1625280347465,59.66067,2144.7,2144.5,1.3560182]
[1625280348022,59.66067,2144.7,2144.4,4.10369548]
[1625280348023,59.66067,2144.7,2144.4,3.56067973]
[1625280348472,2.20527,2144.5,2144.4,3.56067973]
[1625280348571,5.47047,2144.5,2144.4,3.56067973]
[1625280348777,5.47047,2144.5,2144.4,2.20527]
[1625280349591,5.47047,2144.5,2144.3,1.35652302]
[1625280352406,2.20527,2144.5,2144.3,1.35652302]
[1625280352509,2.20527,2144.5,2144.3,3.56179302]
[1625280352710,2.20527,2144.5,2144.4,1.35614451]
[1625280354611,2.20527,2144.5,2144.4,4.48074451]
[1625280354812,2.20527,2144.5,2144.4,3.1246]
[1625280354914,2.20527,2144.5,2144.4,53.6184]
[1625280355111,2.20527,2144.5,2144.4,70.433727]
[1625280355362,2.20527,2144.5,2144.4,72.33623178]
[1625280356311,2.20527,2144.5,2144.4,21.84243178]
[1625280356914,2.20527,2144.5,2144.4,66.75123178]
[1625280357214,2.20527,2144.5,2144.4,21.84243178]
[1625280357416,2.20527,2144.5,2144.4,5.02710478]
[1625280357564,2.20527,2144.5,2144.4,1.3587769]
[1625280361732,2.20527,2144.5,2144.4,44.6150769]